Cogmind - Beta 13 @@@ ROGUE MODE // 2024.03.31 @ 22:49:18 Player: arcadus Result: Destroyed by G-34 Mercenary with Small Laser Performance ------------- Evolutions (1) 500 Regions Visited (5) 1000 Robots Destroyed (24) 120 Value Destroyed (711) 711 Prototype IDs (2) 40 Alien Tech Used (0) 0 Bonus (401) 401 TOTAL SCORE: 2772 Bonus ------- High Alert Combat Kills 11 Follower Combat Kills 236 Entered Garrisons 200 Friendly Fire -46 Cogmind --------- Core Integrity 0/400 Matter 291/300 Energy 100/100 System Corruption 4% Temperature Cool (6) Movement Core (50) Location -9/Garrison Parts ------- > --- POWER (1) -------- (None) > --- PROPULSION (4) --- (None) > --- UTILITY (2) ------ (None) > --- WEAPON (2) ------- (None) > --- INVENTORY (5) ---- Flight Unit Faulty Improved Flight Unit High-capacity Storage Unit Drone Bay (2/2) Peak State ------------ > --- POWER ------------ Ion Engine > --- PROPULSION ------- Flight Unit Flight Unit Flight Unit Improved Flight Unit > --- UTILITY ---------- Small Storage Unit Drone Bay > --- WEAPON ----------- Improved Assault Rifle Improved Assault Rifle > --- INVENTORY -------- Light Ion Engine Light Ion Engine Light Nuclear Core Flight Unit High-capacity Storage Unit Drone Bay Improved Assault Rifle [Rating: 20] Favorites ----------- Power Ion Engine Engine Ion Engine Power Core Light Nuclear Core Propulsion Aluminum Leg Leg Aluminum Leg Flight Unit Flight Unit Utility Small Storage Unit Device Drone Bay Storage Small Storage Unit Weapon Assault Rifle Energy Gun EM Pulse Gun Ballistic Gun Assault Rifle Slashing Weapon Katana Special Melee Weapon Datajack Build | -11 -10 -10 -9 -9 -9 ------- Run | Yrd Mat Min Mat Sto Gar Slots Evolved 2 | . . . 2 . . Power . | . . . . . . Propulsion 2 | . . . 2 . . Utility . | . . . . . . Weapon . | . . . . . . Parts Attached 29 | . 3 . 6 12 8 Power 3 | . . . . 1 2 Engine 2 | . . . . 1 1 Core 1 | . . . . . 1 Reactor . | . . . . . . Propulsion 12 | . 2 . 4 3 3 Treads . | . . . . . . Leg 2 | . 2 . . . . Wheel . | . . . . . . Hover . | . . . . . . Flight 10 | . . . 4 3 3 Utility 5 | . 1 . 2 2 . Device 3 | . . . 1 2 . Storage 2 | . 1 . 1 . . Processor . | . . . . . . Hackware . | . . . . . . Protection . | . . . . . . Artifact . | . . . . . . Weapon 9 | . . . . 6 3 Energy Gun . | . . . . . . Energy Cannon . | . . . . . . Ballistic Gun 7 | . . . . 4 3 Ballistic Cannon . | . . . . . . Launcher . | . . . . . . Special Weapon . | . . . . . . Impact Weapon . | . . . . . . Slashing Weapon 1 | . . . . 1 . Piercing Weapon . | . . . . . . Special Melee Weapon 1 | . . . . 1 . Unidentified Prototypes 2 | . . . . 2 . Parts Lost 19 | . . . . 6 13 Power 3 | . . . . . 3 Propulsion 8 | . . . . 3 5 Utility 3 | . . . . 2 1 Weapon 5 | . . . . 1 4 Highest Loss Streak 9 | . . . . 3 9 To Critical Strikes . | . . . . . . Average Slot Usage (%) 94 | . 96 100 97 86 51 Engine 13 | . 14 14 11 11 6 Leg 22 | . 28 28 5 . . Flight 5 | . . . 38 37 13 Storage 24 | . 24 28 13 11 10 Energy Gun 11 | . 14 14 11 . . Ballistic Gun 13 | . 14 14 11 15 5 Slashing Weapon 1 | . . . . 6 9 Naked Turns 3 | . . . . . 3 Heaviest Build 54 | 14 54 54 54 22 15 Greatest Support 20 | 20 20 20 20 16 12 Greatest Overweight (x) 4 | . 2 2 2 1 4 Average Overweight (x) 1 | . 1 2 . . 1 Largest Inventory Capacity 20 | 8 20 20 20 8 8 Average Capacity 17 | 8 16 20 13 8 7 Most Carried 18 | 6 8 18 17 8 8 Average Carried 14 | 6 6 17 11 7 6 Final Capacity 20 | 8 20 20 8 8 5 Final Carried 18 | 6 8 18 8 8 4 Class Distribution -------------------- 88% | Mutant 7% | Scavenger-Mutant 3% | Scavenger-Sprinter Dominant Class ---------------- Mutant | -10/Materials Mutant | -10/Mines Scavenger-Sprinter | -9/Materials Scavenger-Mutant | -9/Storage Mutant | -9/Garrison Resources | -11 -10 -10 -9 -9 -9 ----------- Run | Yrd Mat Min Mat Sto Gar Matter Collected 695 | 189 . 168 . 269 69 Remotely . | . . . . . . Salvage Created 837 | . . 235 . 450 152 Parts 55 | . . 13 . 28 14 Haulers Intercepted . | . . . . . . Recyclers Shooed . | . . . . . . Parts Field Recycled . | . . . . . . Retrieved Matter . | . . . . . . Parts Self-Destructed . | . . . . . . Prevented . | . . . . . . Kills | -11 -10 -10 -9 -9 -9 ------- Run | Yrd Mat Min Mat Sto Gar Combat Hostiles Destroyed 24 | . . 7 . 10 7 Melee 8 | . . . . 4 4 Guns 14 | . . 5 . 6 3 AOE 2 | . . 2 . . . Classes Destroyed 4 | . . 2 . 2 . Swarmer 8 | . . 3 . . 5 Grunt 13 | . . 4 . 7 2 Duelist 1 | . . . . 1 . Sentry 2 | . . . . 2 . Best Kill Streak 3 | . . 3 . 3 2 Combat Bots Only 3 | . . 3 . 3 2 Max Kills in Single Turn 2 | . . 2 . 1 1 Gunslinging . | . . . . . . Exploded 2 | . . 2 . . . Melee 1 | . . . . 1 1 Uniques/NPCs Destroyed . | . . . . . . Combat | -11 -10 -10 -9 -9 -9 -------- Run | Yrd Mat Min Mat Sto Gar Hostile Shots Fired 188 | . . 17 . 42 129 Missed 40 | . . 3 . 7 30 Damage Taken 1610 | . . 190 . 535 885 Core 449 | . . 49 . 80 320 Absorbed by Shields 54 | . . . . . 54 Core Remaining (%) 90 | 100 . 80 . . . Volleys Fired 54 | . . 9 . 25 20 Largest 2 | . . 2 . 2 2 Hottest 60 | . . 60 . 60 46 Shots Fired 83 | . . 18 . 44 21 Gun 83 | . . 18 . 44 21 Cannon . | . . . . . . Launcher . | . . . . . . Special . | . . . . . . Kinetic 70 | . . 9 . 40 21 Thermal . | . . . . . . Explosive . | . . . . . . Electromagnetic 13 | . . 9 . 4 . Robot Hit Streak 13 | . . 4 . 13 7 Robot Miss Streak 4 | . . 3 . 2 4 Penetration Max . | . . . . . . Secondary Targets 1 | . . 1 . . . Max Gunslinging Chain 1 | . . 1 . . . Shots Hit Robots 66 | . . 9 . 39 18 Core Hits 36 | . . 9 . 18 9 Critical Kills . | . . . . . . Critical Parts Destroyed . | . . . . . . Critical Strikes 1 | . . . . 1 . Sever 1 | . . . . 1 . Melee Attacks 16 | . . . . 7 9 Impact . | . . . . . . Slashing 16 | . . . . 7 9 Piercing . | . . . . . . Sneak Attacks . | . . . . . . Combat Hostiles . | . . . . . . Follow-up Attacks . | . . . . . . Damage Inflicted 1413 | . . 314 . 710 389 Guns 853 | . . 154 . 477 222 Cannons . | . . . . . . Explosions 160 | . . 160 . . . Melee 393 | . . . . 233 160 Ramming 7 | . . . . . 7 Kinetic 760 | . . 74 . 464 222 Thermal 160 | . . 160 . . . Explosive . | . . . . . . Electromagnetic 93 | . . 80 . 13 . Impact . | . . . . . . Slashing 393 | . . . . 233 160 Piercing . | . . . . . . Highest Corruption 4 | . . . . 4 4 Average Corruption 3 | . . . . 2 4 Corruption Purged . | . . . . . . Corruption Blocked . | . . . . . . Effects 14 | . . . . 7 7 Message Errors 1 | . . . . . 1 Matter Fused 2 | . . . . 2 . Heat Flow Errors 2 | . . . . 2 . Energy Discharges 2 | . . . . 1 1 Parts Rejected 1 | . . . . . 1 Data Loss (minor) 2 | . . . . . 2 Misfires 2 | . . . . 1 1 Alerts 1 | . . . . 1 . Weapon Failures 1 | . . . . . 1 Overload Shots . | . . . . . . Overflow Damage 9 | . . . . . 9 Projectiles . | . . . . . . Explosions . | . . . . . . Melee 9 | . . . . . 9 Knockbacks . | . . . . . . Impact . | . . . . . . Kinetic . | . . . . . . Secondary . | . . . . . . Self-Inflicted Damage 16 | . . 13 . . 3 Shots 1 | . . 1 . . . Rammed 4 | . . . . . 4 Targets Rammed 4 | . . . . . 4 Kicked . | . . . . . . Crushed . | . . . . . . Highest Temperature 281 | . . 42 . 281 9 Average Temperature 68 | . . 24 . 77 9 Received Heat Transfer 559 | . . 78 . 228 253 Siege Activations . | . . . . . . Robots Corrupted . | . . . . . . Combat Hostiles . | . . . . . . Parts Fried . | . . . . . . Impact Corruptions . | . . . . . . Robots Melted . | . . . . . . Combat Hostiles . | . . . . . . Parts Melted . | . . . . . . Heat Transferred 150 | . . 150 . . . Parts Sabotaged . | . . . . . . Parts Stolen . | . . . . . . Parts Stripped . | . . . . . . Power Chain Reactions 1 | . . 1 . . . Alert | -11 -10 -10 -9 -9 -9 ------- Run | Yrd Mat Min Mat Sto Gar Peak Influence 431 | . 15 132 38 431 370 Initial 280 | . . 5 . 15 280 Average 70 | . 5 24 9 252 313 Maximum Alert Level 2 | . . . . 2 1 Low Security (%) 84 | 100 100 100 100 27 . Level 1 15 | . . . . 67 100 Level 2 . | . . . . 5 . Level 3 . | . . . . . . Level 4 . | . . . . . . Level 5 . | . . . . . . High Security . | . . . . . . Max Security . | . . . . . . Squads Dispatched 3 | . . 1 . 2 . Investigation . | . . . . . . Extermination . | . . . . . . Reinforcement . | . . . . . . Assault 3 | . . 1 . 2 . Garrison . | . . . . . . Intercept . | . . . . . . Searches Triggered . | . . . . . . Construction Impeded . | . . . . . . Haulers Reinforced . | . . . . . . Active Scanning Responses . | . . . . . . Cargo Convoy Interrupts . | . . . . . . Stealth | -11 -10 -10 -9 -9 -9 --------- Run | Yrd Mat Min Mat Sto Gar Distress Signals . | . . . . . . Communications Jammed . | . . . . . . Distress Signals . | . . . . . . Times Spotted 44 | . 1 9 1 20 13 Peak Tracking Total 6 | . 1 4 1 5 6 Tactical Retreats . | . . . . . . Traps | -11 -10 -10 -9 -9 -9 ------- Run | Yrd Mat Min Mat Sto Gar Traps Triggered 3 | . . . . 1 2 Indirectly . | . . . . . . Trap Hack Attempts . | . . . . . . Triggered . | . . . . . . Disarmed . | . . . . . . Reprogrammed . | . . . . . . Reused . | . . . . . . Traps Extracted . | . . . . . . Installed . | . . . . . . Triggered . | . . . . . . Machines | -11 -10 -10 -9 -9 -9 ---------- Run | Yrd Mat Min Mat Sto Gar Machines Disabled . | . . . . . . Max in Single Turn . | . . . . . . Machines Repaired . | . . . . . . Machines Dismantled . | . . . . . . Machines Sabotaged . | . . . . . . Overloaded Fab Kills . | . . . . . . Hacking | -11 -10 -10 -9 -9 -9 --------- Run | Yrd Mat Min Mat Sto Gar Machines Accessed 5 | . . 2 1 2 . Terminals 4 | . . 2 1 1 . Fabricators . | . . . . . . Repair Stations . | . . . . . . Recycling Units . | . . . . . . Scanalyzers . | . . . . . . Garrison Access 1 | . . . . 1 . Total Hacks 12 | . . 6 3 3 . Successful 6 | . . 2 2 2 . Failed 6 | . . 4 1 1 . Catastrophic 2 | . . 2 . . . Database Lockouts . | . . . . . . Manual 9 | . . 5 3 1 . Terminals 11 | . . 6 3 2 . Fabricators . | . . . . . . Repair Stations . | . . . . . . Recycling Units . | . . . . . . Scanalyzers . | . . . . . . Garrison Access 1 | . . . . 1 . Terminal Hacks 5 | . . 2 2 1 . Record 1 | . . . 1 . . Open Door 1 | . . . . 1 . Branch Access Points 1 | . . . 1 . . Alert Level 1 | . . 1 . . . Zone Layout 1 | . . 1 . . . Fabricator Hacks . | . . . . . . Repair Station Hacks . | . . . . . . Recycling Unit Hacks . | . . . . . . Scanalyzer . | . . . . . . Garrison Access Hacks 1 | . . . . 1 . Unlock Access 1 | . . . . 1 . Unauthorized Hacks . | . . . . . . Terminals . | . . . . . . Fabricators . | . . . . . . Repair Stations . | . . . . . . Recycling Units . | . . . . . . Scanalyzers . | . . . . . . Garrison Access . | . . . . . . Data Cores Recovered . | . . . . . . Used . | . . . . . . Hacking Detections 2 | . . 1 . 1 . Full Trace Events . | . . . . . . Feedback Events . | . . . . . . Feedback Blocked . | . . . . . . Robot Schematics Acquired . | . . . . . . Robots Built . | . . . . . . Authchips . | . . . . . . Time . | . . . . . . Total Robot Build Rating . | . . . . . . Part Schematics Acquired . | . . . . . . Parts Built . | . . . . . . Authchips . | . . . . . . Time . | . . . . . . Total Part Build Rating . | . . . . . . Parts Repaired . | . . . . . . Time . | . . . . . . Parts Recycled . | . . . . . . Recycled Matter . | . . . . . . Retrieved Matter . | . . . . . . Retrieved Components . | . . . . . . Parts Scanalyzed . | . . . . . . Part Schematics Acquired . | . . . . . . Parts Damaged . | . . . . . . Bothacking | -11 -10 -10 -9 -9 -9 ------------ Run | Yrd Mat Min Mat Sto Gar Used RIF Installer . | . . . . . . Robots Hacked . | . . . . . . Non-combat . | . . . . . . Combat . | . . . . . . Robot Hacks Applied . | . . . . . . Relay Couplers Released . | . . . . . . Fabnet Peak Effective % . | . . . . . . Robots Rewired . | . . . . . . Allies Hacked . | . . . . . . Hacks Repelled . | . . . . . . Allies | -11 -10 -10 -9 -9 -9 -------- Run | Yrd Mat Min Mat Sto Gar Total Allies 3 | . . 1 . 2 . Largest Group 2 | . . 1 . 2 . Highest-Rated Group 62 | . . 31 . 62 . Highest-Rated Ally 31 | . . 31 . 31 . Total Orders . | . . . . . . Ally Attacks 41 | . . 10 . 31 . Total Damage 751 | . . 206 . 545 . Kills 9 | . . 2 . 7 . Allies Corrupted . | . . . . . . Allies Melted . | . . . . . . Intel | -11 -10 -10 -9 -9 -9 ------- Run | Yrd Mat Min Mat Sto Gar Robot Analysis Total . | . . . . . . Derelict Logs Recovered 1 | . . 1 . . . Drone Launches 3 | . . . . 3 . Drone Recoveries 2 | . . . . 2 . Exploration | -11 -10 -10 -9 -9 -9 ------------- Run | Yrd Mat Min Mat Sto Gar Turns Passed 2939 | 10 169 2165 41 329 225 Spaces Moved 1287 | 9 81 801 70 228 98 Core 10 | . . . . . 10 Treads . | . . . . . . Legs 893 | 9 81 801 2 . . Wheels . | . . . . . . Hover . | . . . . . . Flight 384 | . . . 68 228 88 Fastest Speed 31 | 120 120 260 31 31 50 Average Speed 200 | 120 202 260 37 73 126 Slowest Speed 280 | 120 260 260 260 117 280 Overloaded Moves . | . . . . . . Propulsion Burnouts . | . . . . . . Robots Hopped . | . . . . . . Cave-ins Triggered . | . . . . . . Exploration Rate (%) 31 | 2 22 88 10 46 21 Regions Visited 5 Branch Regions 2 Pre-discovered Areas . | . . . . . . Known Exits Taken 2 | . . . 1 1 . Unknown Exits Taken 3 | 1 1 1 . . . Scrap Searched 3 | . . 3 . . . Spaces Dug . | . . . . . . Terrain Destroyed 5 | . . 5 . . . Melee . | . . . . . . Projectile . | . . . . . . AOE 5 | . . 5 . . . Terrain Rammed . | . . . . . . Walls Destroyed . | . . . . . . Machines Disabled . | . . . . . . Actions | -11 -10 -10 -9 -9 -9 --------- Run | Yrd Mat Min Mat Sto Gar Total 1551 | 8 87 867 88 336 165 Wait 95 | . . 46 . 49 . Move 1283 | 8 80 800 69 228 98 Hop . | . . . . . . Pick Up 28 | . 2 11 2 9 4 Fast Attach 1 | . 1 . . . . Attach 19 | . 2 . 3 6 8 Detach 4 | . 2 . 1 1 . Swap 9 | . . . 3 6 . Drop 16 | . . 1 10 5 . Fire 54 | . . 9 . 25 20 Melee 16 | . . . . 7 9 Ram 4 | . . . . . 4 Kick . | . . . . . . Crush . | . . . . . . Escape Stasis 22 | . . . . . 22 Rewire . | . . . . . . Trap . | . . . . . . Miscellaneous . | . . . . . . Route ------- -11/Scrapyard -10/Materials (discovered 2 exits: *Mat / *Min) -10/Mines (discovered 2 exits: *Mat x2) -9/Materials (discovered 3 exits: Min x2 / *Sto) -9/Storage -9/Garrison History --------- Turn | Location | Event 1 | -11/Scrapyard | Discovered new exit (range 3) 11 | -11/Scrapyard | Entered Materials 34 | -10/Materials | Discovered new exit (range 16) 138 | -10/Materials | Discovered new exit (range 16) 180 | -10/Materials | Entered Mines 213 | -10/Mines | Met a Derelict bent on vengeance 303 | -10/Mines | Build established: Mutant 369 | -10/Mines | Found a hidden stash of uninstalled traps 1014 | -10/Mines | Learned Materials machine intel 1112 | -10/Mines | Discovered new exit (range 14) 1204 | -10/Mines | Met a Derelict testing a Signal Generator 2116 | -10/Mines | Discovered new exit (range 15) 2345 | -10/Mines | Entered Materials 2345 | -9/Materials | Evolved 2 slots: Propulsion x2 2346 | -9/Materials | Loaded intel: 67 machine locations 2383 | -9/Materials | Identified exit to Mines 2383 | -9/Materials | Identified exit to Storage 2386 | -9/Materials | Entered Storage 2420 | -9/Storage | Met a pair of Derelict thieves 2434 | -9/Storage | Lost 3 parts (1n1u1w) 2650 | -9/Storage | Lost 3 parts (2n1u) 2715 | -9/Storage | Identified exit to Garrison 2715 | -9/Storage | Entered Garrison 2766 | -9/Garrison | Triggered checkpoint 2840 | -9/Garrison | Lost 3 parts (2n1w) 2898 | -9/Garrison | Triggered checkpoint 2904 | -9/Garrison | Triggered checkpoint 2907 | -9/Garrison | Core integrity fell below 50% 2936 | -9/Garrison | Core integrity fell below 20% 2940 | -9/Garrison | Destroyed by G-34 Mercenary with Small Laser Last Messages --------------- payload. 02904_ G-47 Trooper unfolds itself. 02904_ G-34 Mercenary unfolds itself. 02904_ Critical hit (Burn: +37). 02904_ S-10 Pest destroyed. 02909_ Acquired Flight Unit. 02910_ Flight Unit destroyed. 02911_ Lgt. Ion Engine destroyed. 02912_ Flight Unit destroyed. 02918_ Katana destroyed. 02923_ Imp. Assault Rifle destroyed. 02927_ System corrupted: Imp. Assault Rifle rejected. 02934_ Imp. Assault Rifle destroyed. 02936_ Slammed into S-10 Pest. 02937_ Sml. Storage Unit destroyed. 02938_ Slammed into S-10 Pest. 02938_ S-10 Pest destroyed. 02939_ Acquired 20 matter. 02940_ Slammed into G-34 Mercenary. Map ----- +----------------------------------------------------+ | ?????????????????????????????????????????????????? | | ?????????????????????????????????????????????????? | | ?????????????????????????????????????????????????? | | ?????????????????????????????????????????????????? | | ?????????????????????????????????????????????????? | | ##########???????????????????????????????????????? | | #???????????????????????????????????????? | | #???????????????????????????????????????? | | ####### #???????????????????????????????????????? | | ??????# #???????????????????????????????????????? | | ??????# #???????????????????????????????????????? | | ??????# #???????????????????????????????????????? | | ??????# #???????????????????????????????????????? | | ??????# #?????????????????#####?????????????????? | | ####### ###########??????? ?????????????????? | | # #??????? ??????????????????? | | # ##### #??????# ??????????????????? | | # #???# ######## #??????# #??????????????????? | | # #???# #??????# #??????# #??????????????????? | | #???+ #??????# ^#??????# #??????????????????? | | ###???# #??????# #??????# #??????????????????? | | ??????# #??????# #??????# #??????????????????? | | ?????##! #??????# ######## #??????????????????? | | ?????#T%*#??????# ##% % ## #??????????????????? | | ?????## %#?????## ##*= ##[ #??????????????????? | | #######[^####### @g #??????????????????? | | +^= =s #??????????????????? | | #######%**[= gg #??????????????????? | | ??????########## ## ##g #??????????????????? | | ???????????????# ## ## #??????????????????? | | ??????????????" "??????????????????? | | ?????????????#%" "??????????????????? | | ?????????????#" "??????????????????? | | ?????????????# "??????????????????? | | ?????????????### ## ## #??????????????????? | | ???????????????# ## #? #??????????????????? | | ???????????????# ? #??????????????????? | | ???????????????# #??????????????????? | | ???????????????# #??????????????????? | | ???????????????## ##""""## ##??????????????????? | | ????????????????? #?????????????????????????????? | | ????????????????? ??????????????????????????????? | | ????????????????? ??????????????????????????????? | | ?????????????????????????????????????????????????? | | ?????????????????????????????????????????????????? | | ?????????????????????????????????????????????????? | | ?????????????????????????????????????????????????? | | ?????????????????????????????????????????????????? | | ?????????????????????????????????????????????????? | | ?????????????????????????????????????????????????? | +----------------------------------------------------+ Best States ------------- Heat Dissipation 28 Energy Generation 14 Energy Capacity 250 Matter Stores 300 Matter Capacity 300 Sight Range 16 Terrain Scan Density 10 ECM Strength 1 Evasion (%) 63 Item Schematics ----------------- None Robot Schematics ------------------ None Fabricated ------------ Nothing Alien Tech Used ----------------- None Achievements -------------- None Challenges ------------ None Game ------ Seed ForceLightningCompressor Manual? 0 Play Time 00:55:44 Cumulative 10.2 hours Start 2024.03.31 @ 21:45:34 End 2024.03.31 @ 22:49:18 Sessions 3 Manual Loads 0 Difficulty Rogue Special Mode None Game No. 12 Rogue 12 Adventurer 0 Explorer 0 Win Type - Total 0 Types 0/0/0/0/0/0/0/0/0 Lore% 2 Gallery% 15 Achievement% 11 Wizard Run 0 Options --------- Layout 1 ASCII 0 Keyboard 1 Movement Vi Keybinds 0 Fullscreen 2 Font 24/Smallcaps Map View 50x35 Zoom Use 0% Tactical HUD 1 Map Filters NONE Filters NONE Steam 1 RUN: b3f9981b-d6fd-4405-9149-b9d6c34fd455